fUSD/lending_fUSD_20250221
["ID","MTS","AMOUNT","RATE_DAILY","PERIOD"]
[353954411,1740165097143,-500.0,0.00011698,2]
[353954412,1740165097159,-500.0,0.00011698,2]
[353954413,1740165097175,-500.0,0.00011698,2]
[353954414,1740165097191,-500.0,0.00011698,2]
[353954415,1740165097206,-1218.86,0.00011698,2]
[353954416,1740165097221,-500.0,0.00011698,2]
[353954417,1740165097236,-872.66,0.00011698,2]
[353954418,1740165097251,-847.49,0.00011698,2]
[353954419,1740165097267,-500.0,0.00011698,2]
[353954420,1740165097282,-1152.78,0.00011698,2]
[353954421,1740165097298,-500.0,0.00011698,2]
[353954422,1740165097315,-784.84,0.00011698,2]
[353954423,1740165097329,-811.75,0.00011698,2]
[353954424,1740165097345,-651.21,0.00011698,2]
[353954425,1740165097362,-500.0,0.00011698,2]
[353954426,1740165097378,-1602.77,0.00011698,2]
[353954427,1740165097395,-928.49,0.00011698,2]
[353954428,1740165097410,-461.83049187,0.00011698,2]
[353954429,1740165097426,-1453.54,0.00011698,2]
[353954430,1740165097440,-500.0,0.00011698,2]
[353954431,1740165097456,-1052.55,0.00011698,2]
[353954432,1740165097471,-654.12,0.00011698,2]
[353954433,1740165097485,-500.0,0.00011698,2]
[353954434,1740165097500,-600.59,0.00011698,2]
[353954435,1740165097515,-500.0,0.00011698,2]
[353954436,1740165097530,-1557.94,0.00011698,2]
[353954437,1740165097546,-600.19,0.00011698,2]
[353954438,1740165097560,-723.16,0.00011698,2]
[353954439,1740165097575,-500.0,0.00011698,2]
[353954440,1740165097591,-973.86,0.00011698,2]
[353954441,1740165097607,-627.0,0.00011698,2]
[353954442,1740165097621,-597.11,0.00011698,2]
[353954443,1740165097638,-1361.06,0.00011698,2]
[353954444,1740165097653,-500.0,0.00011698,2]
[353954445,1740165097668,-545.63,0.00011698,2]
[353954446,1740165097682,-684.05,0.00011698,2]
[353954447,1740165097698,-508.67,0.00011698,2]
[353954448,1740165097712,-865.33,0.00011698,2]
[353954449,1740165097728,-565.87,0.00011698,2]
[353954450,1740165097742,-612.75,0.00011698,2]
[353954451,1740165097757,-523.64,0.00011698,2]
[353954452,1740165097772,-961.54,0.00011698,2]
[353954453,1740165097787,-645.56,0.00011698,2]
[353954454,1740165097802,-842.47,0.00011698,2]
[353954455,1740165097821,-500.0,0.00011698,2]
[353954456,1740165097836,-500.0,0.00011698,2]
[353954457,1740165097851,-895.28,0.00011698,2]
[353954458,1740165097865,-500.0,0.00011698,2]
[353954459,1740165097880,-500.0,0.00011698,2]
[353954460,1740165097896,-793.32,0.00011698,2]
[353954461,1740165097911,-432.992927,0.00011698,2]
[353954462,1740165097927,-514.87,0.00011698,2]
[353954463,1740165097944,-500.0,0.00011698,2]
[353954464,1740165097959,-1112.36,0.00011698,2]
[353954465,1740165097975,-500.0,0.00011698,2]
[353954466,1740165097990,-840.51,0.00011698,2]
[353954467,1740165098006,-691.0,0.00011698,2]
[353954468,1740165098021,-500.0,0.00011698,2]
[353954469,1740165098036,-1180.13,0.00011698,2]
[353954470,1740165098052,-844.88,0.00011698,2]
[353954471,1740165098067,-806.72,0.00011698,2]
[353954472,1740165098082,-500.0,0.00011698,2]
[353954473,1740165098098,-537.23,0.00011698,2]
[353954474,1740165098113,-500.0,0.00011698,2]
[353954475,1740165098128,-892.59,0.00011698,2]
[353954476,1740165098144,-806.21,0.00011698,2]
[353954477,1740165098159,-572.73,0.00011698,2]
[353954478,1740165098175,-500.0,0.00011698,2]
[353954479,1740165098190,-1563.66,0.00011698,2]
[353954480,1740165098205,-821.26,0.00011698,2]
[353954481,1740165098398,-500.0,0.00011698,2]
[353954482,1740165098413,-500.0,0.00011698,2]
[353954483,1740165098423,-940.42,0.00011698,2]
[353954484,1740165098432,-611.12,0.00011698,2]
[353954485,1740165098442,-500.0,0.00011698,2]
[353954486,1740165098452,-500.0,0.00011698,2]
[353954487,1740165098463,-506.06828099,0.00011698,2]
[353954488,1740165098472,-1780.54,0.00011698,2]
[353954489,1740165098482,-500.0,0.00011698,2]
[353954490,1740165098492,-500.0,0.00011698,2]
[353954491,1740165098502,-991.67,0.00011698,2]
[353954492,1740165098512,-500.0,0.00011698,2]
[353954493,1740165098522,-528.9,0.00011698,2]
[353954494,1740165098531,-1402.78,0.00011698,2]
[353954495,1740165098541,-1033.27,0.00011698,2]
[353954496,1740165098552,-166.52205988,0.00011698,2]
[353954497,1740165098562,-500.0,0.00011698,2]
[353954498,1740165098572,-600.36,0.00011698,2]
[353954499,1740165098583,-500.0,0.00011698,2]
[353954500,1740165098592,-500.0,0.00011698,2]
[353954501,1740165098602,-882.31,0.00011698,2]
[353954502,1740165098612,-500.0,0.00011698,2]
[353954503,1740165098621,-970.65,0.00011698,2]
[353954504,1740165098630,-400.05,0.00011698,2]
[353954505,1740165098643,-500.0,0.00011698,2]
[353954506,1740165098653,-500.0,0.00011698,2]
[353954507,1740165098662,-624.71,0.00011698,2]
[353954508,1740165098673,-550.33,0.00011698,2]
[353954509,1740165098682,-500.0,0.00011698,2]
[353954510,1740165098692,-500.0,0.00011698,2]
[353954511,1740165098702,-500.0,0.00011698,2]
[353954512,1740165098712,-500.0,0.00011698,2]
[353954513,1740165098722,-1496.36,0.00011698,2]
[353954514,1740165098734,-500.0,0.00011698,2]
[353954515,1740165098746,-500.0,0.00011698,2]
[353954516,1740165098757,-552.04,0.00011698,2]
[353954517,1740165098767,-500.0,0.00011698,2]
[353954518,1740165098777,-795.52,0.00011698,2]
[353954519,1740165098786,-500.0,0.00011698,2]
[353954520,1740165098797,-529.57,0.00011698,2]
[353954521,1740165098807,-500.0,0.00011698,2]
[353954522,1740165098817,-512.15,0.00011698,2]
[353954523,1740165098827,-500.0,0.00011698,2]
[353954524,1740165098837,-500.0,0.00011698,2]
[353954525,1740165098847,-500.0,0.00011698,2]
[353954526,1740165098857,-1185.38,0.00011698,2]
[353954527,1740165098866,-672.16,0.00011698,2]
[353954528,1740165098877,-535.75,0.00011698,2]
[353954529,1740165098886,-500.0,0.00011698,2]
[353954530,1740165098897,-909.05,0.00011698,2]
[353954531,1740165098907,-162.89298752,0.00011698,2]
[353954532,1740165098917,-500.0,0.00011698,2]
[353954533,1740165098927,-1301.85,0.00011698,2]
[353954534,1740165098937,-500.0,0.00011698,2]
[353954535,1740165098949,-762.98,0.00011698,2]
[353954536,1740165098959,-500.0,0.00011698,2]
[353954537,1740165098968,-1086.19,0.00011698,2]
[353954538,1740165098978,-628.04,0.00011698,2]
[353954539,1740165098989,-1272.05,0.00011698,2]
[353954540,1740165098999,-2241.53,0.00011698,2]
[353954541,1740165099009,-500.0,0.00011698,2]
[353954542,1740165099018,-670.58,0.00011698,2]
[353954543,1740165099029,-500.0,0.00011698,2]
[353954544,1740165099039,-500.0,0.00011698,2]
[353954545,1740165099050,-500.0,0.00011698,2]
[353954546,1740165099060,-500.0,0.00011698,2]
[353954547,1740165099070,-500.0,0.00011698,2]
[353954548,1740165099081,-968.09,0.00011698,2]
[353954549,1740165099091,-501.94,0.00011698,2]
[353954550,1740165099101,-1124.07,0.00011698,2]
[353954551,1740165099111,-500.0,0.00011698,2]
[353954552,1740165099120,-1924.61,0.00011698,2]
[353954553,1740165099129,-503.84,0.00011698,2]
[353954554,1740165099138,-807.41,0.00011698,2]
[353954555,1740165099148,-500.0,0.00011698,2]
[353954556,1740165099157,-709.07,0.00011698,2]
[353954557,1740165099166,-1488.79,0.00011698,2]
[353954558,1740165099176,-571.07,0.00011698,2]
[353954559,1740165099186,-500.0,0.00011698,2]
[353954560,1740165099195,-500.0,0.00011698,2]
[353954561,1740165099204,-500.0,0.00011698,2]
[353954562,1740165099214,-805.91,0.00011698,2]
[353954563,1740165099224,-500.0,0.00011698,2]
[353954564,1740165099234,-500.0,0.00011698,2]
[353954565,1740165099244,-1851.17,0.00011698,2]
[353954566,1740165099256,-761.43,0.00011698,2]
[353954567,1740165099265,-1326.72,0.00011698,2]
[353954568,1740165099275,-978.38,0.00011698,2]
[353954569,1740165099284,-906.21,0.00011698,2]
[353954570,1740165099294,-1904.8,0.00011698,2]
[353954571,1740165099303,-880.27,0.00011698,2]
[353954572,1740165099313,-571.47,0.00011698,2]
[353954573,1740165099323,-1097.77,0.00011698,2]
[353954574,1740165099333,-859.08,0.00011698,2]
[353954575,1740165099342,-934.53,0.00011698,2]
[353954576,1740165099352,-1546.56,0.00011698,2]
[353954577,1740165099362,-583.31,0.00011698,2]
[353954578,1740165099371,-1130.91,0.00011698,2]
[353954579,1740165099381,-500.0,0.00011698,2]
[353954580,1740165099393,-500.0,0.00011698,2]
[353954581,1740165099403,-585.41,0.00011698,2]
[353954582,1740165099413,-851.02,0.00011698,2]
[353954583,1740165099423,-500.0,0.00011698,2]
[353954584,1740165099433,-568.02,0.00011698,2]
[353954585,1740165099443,-887.3,0.00011698,2]
[353954586,1740165099453,-4138.33,0.00011698,2]
[353954587,1740165099463,-500.0,0.00011698,2]
[353954588,1740165099472,-1028.99,0.00011698,2]
[353954589,1740165099482,-500.0,0.00011698,2]
[353954590,1740165099492,-500.0,0.00011698,2]
[353954591,1740165099501,-500.0,0.00011698,2]
[353954592,1740165099511,-500.0,0.00011698,2]
[353954593,1740165099521,-2434.92,0.00011698,2]
[353954594,1740165099531,-1865.97,0.00011698,2]
[353954595,1740165099541,-864.63,0.00011698,2]
[353954596,1740165099552,-500.0,0.00011698,2]
[353954597,1740165099561,-2807.32,0.00011698,2]
[353954598,1740165099571,-2485.93,0.00011698,2]
[353954599,1740165099581,-1948.35,0.00011698,2]
[353954600,1740165099590,-1949.15,0.00011698,2]
[353954601,1740165099600,-1250.92,0.00011698,2]
[353954602,1740165099610,-1368.66,0.00011698,2]
[353954603,1740165099620,-520.29,0.00011698,2]
[353954604,1740165099630,-500.0,0.00011698,2]
[353954605,1740165099640,-1591.76,0.00011698,2]
[353954606,1740165099650,-500.0,0.00011698,2]
[353954607,1740165099660,-3268.34,0.00011698,2]
[353954608,1740165099669,-854.07,0.00011698,2]
[353954609,1740165099679,-500.0,0.00011698,2]
[353954610,1740165099688,-844.22,0.00011698,2]
[353954611,1740165099698,-1747.18,0.00011698,2]
[353954612,1740165099708,-1927.68,0.00011698,2]
[353954613,1740165099717,-2153.78,0.00011698,2]
[353954614,1740165099726,-500.0,0.00011698,2]
[353954615,1740165099735,-500.0,0.00011698,2]
[353954616,1740165099744,-2392.73,0.00011698,2]
[353954617,1740165099754,-648.85,0.00011698,2]
[353954618,1740165099763,-1746.45,0.00011698,2]
[353954619,1740165099773,-2224.89,0.00011698,2]
[353954620,1740165099782,-579.73,0.00011698,2]
[353954621,1740165099791,-2556.04,0.00011698,2]
[353954622,1740165099799,-236.26043265,0.00011698,2]
[353954623,1740165099808,-1670.15,0.00011698,2]
[353954624,1740165099818,-2603.67,0.00011698,2]
[353954625,1740165099827,-500.0,0.00011698,2]
[353954626,1740165099837,-500.0,0.00011698,2]
[353954627,1740165099846,-3612.24,0.00011698,2]
[353954628,1740165099855,-1657.83,0.00011698,2]
[353954629,1740165099865,-500.0,0.00011698,2]
[353954630,1740165099875,-1844.51,0.00011698,2]
[353954631,1740165099885,-500.0,0.00011698,2]
[353954632,1740165099896,-1834.55,0.00011698,2]
[353954633,1740165099906,-2535.0,0.00011698,2]
[353954634,1740165099915,-500.0,0.00011698,2]
[353954635,1740165099925,-518.53,0.00011698,2]
[353954636,1740165099936,-500.0,0.00011698,2]
[353954637,1740165099946,-597.04,0.00011698,2]
[353954638,1740165099955,-549.49,0.00011698,2]
[353954639,1740165099965,-2357.0,0.00011698,2]
[353954640,1740165099975,-845.32,0.00011698,2]
[353954641,1740165099986,-2963.81,0.00011698,2]
[353954642,1740165099995,-510.94,0.00011698,2]
[353954643,1740165100004,-2566.53,0.00011698,2]
[353954644,1740165100013,-1026.17,0.00011698,2]
[353954645,1740165100024,-1074.2,0.00011698,2]
[353954646,1740165100033,-550.84,0.00011698,2]
[353954647,1740165100042,-515.71,0.00011698,2]
[353954648,1740165100052,-500.0,0.00011698,2]
[353954649,1740165100062,-5103.01,0.00011698,2]
[353954650,1740165100071,-1908.26,0.00011698,2]
[353954651,1740165100080,-758.92,0.00011698,2]
[353954652,1740165100090,-500.0,0.00011698,2]
[353954653,1740165100100,-1293.25,0.00011698,2]
[353954654,1740165100110,-939.76,0.00011698,2]
[353954655,1740165100120,-500.0,0.00011698,2]
[353954656,1740165100131,-500.0,0.00011698,2]
[353954657,1740165100141,-2356.45,0.00011698,2]
[353954658,1740165100151,-966.62,0.00011698,2]
[353954659,1740165100160,-974.14,0.00011698,2]
[353954660,1740165100169,-1909.2,0.00011698,2]
[353954661,1740165100179,-818.25,0.00011698,2]
[353954662,1740165100189,-520.34,0.00011698,2]
[353954663,1740165100199,-685.93,0.00011698,2]
[353954664,1740165100208,-2768.26,0.00011698,2]
[353954665,1740165100217,-1604.23,0.00011698,2]
[353954666,1740165100227,-500.0,0.00011698,2]
[353954667,1740165100236,-2184.09,0.00011698,2]
[353954668,1740165100246,-1998.1,0.00011698,2]
[353954669,1740165100255,-500.0,0.00011698,2]
[353954670,1740165100264,-646.23,0.00011698,2]
[353954671,1740165100274,-554.65,0.00011698,2]
[353954672,1740165100285,-1012.21,0.00011698,2]
[353954673,1740165100295,-500.0,0.00011698,2]
[353954674,1740165100305,-2916.09,0.00011698,2]
[353954675,1740165100315,-500.0,0.00011698,2]
[353954676,1740165100325,-862.38,0.00011698,2]
[353954677,1740165100459,-500.0,0.00011698,2]
[353954678,1740165100469,-565.07,0.00011698,2]
[353954679,1740165100479,-500.0,0.00011698,2]
[353954680,1740165100489,-599.53,0.00011698,2]
[353954681,1740165100500,-829.35,0.00011698,2]
[353954682,1740165100510,-1959.3,0.00011698,2]
[353954683,1740165100520,-1594.81,0.00011698,2]
[353954684,1740165100530,-1779.68,0.00011698,2]
[353954685,1740165100539,-1091.45,0.00011698,2]
[353954686,1740165100548,-957.13,0.00011698,2]
[353954687,1740165100558,-1026.09,0.00011698,2]
[353954688,1740165100567,-1402.52,0.00011698,2]
[353954689,1740165100576,-829.08,0.00011698,2]
[353954690,1740165100586,-875.76,0.00011698,2]
[353954691,1740165100596,-500.0,0.00011698,2]
[353954692,1740165100606,-829.3,0.00011698,2]
[353954693,1740165100615,-1629.13,0.00011698,2]
[353954694,1740165100625,-1178.28,0.00011698,2]
[353954695,1740165100637,-781.38,0.00011698,2]
[353954696,1740165100648,-3393.01,0.00011698,2]
[353954697,1740165100659,-500.0,0.00011698,2]
[353954698,1740165100670,-500.0,0.00011698,2]
[353954699,1740165100680,-5355.55,0.00011698,2]
[353954700,1740165100690,-1183.94,0.00011698,2]
[353954701,1740165100701,-500.0,0.00011698,2]
[353954702,1740165100712,-579.29,0.00011698,2]
[353954703,1740165100722,-736.92,0.00011698,2]
[353954704,1740165100731,-2607.94,0.00011698,2]
[353954705,1740165100741,-709.36,0.00011698,2]
[353954706,1740165100751,-500.0,0.00011698,2]
[353954707,1740165100760,-500.0,0.00011698,2]
[353954708,1740165100769,-1636.76,0.00011698,2]
[353954709,1740165100778,-777.51,0.00011698,2]
[353954710,1740165100788,-2680.1,0.00011698,2]
[353954711,1740165100797,-500.0,0.00011698,2]
[353954712,1740165100807,-926.57,0.00011698,2]
[353954713,1740165100817,-1426.91,0.00011698,2]
[353954714,1740165100827,-1759.53,0.00011698,2]
[353954715,1740165100836,-500.0,0.00011698,2]
[353954716,1740165100848,-500.0,0.00011698,2]
[353954717,1740165100858,-3088.04,0.00011698,2]
[353954718,1740165100867,-500.0,0.00011698,2]
[353954719,1740165100877,-2102.27,0.00011698,2]
[353954720,1740165100887,-2473.99,0.00011698,2]
[353954721,1740165100903,-6791.49,0.00011698,2]
[353954722,1740165100913,-3023.06,0.00011698,2]
[353954723,1740165100923,-854.81,0.00011698,2]
[353954724,1740165100934,-2846.46,0.00011698,2]
[353954725,1740165100945,-1961.8,0.00011698,2]
[353954726,1740165100956,-1835.58,0.00011698,2]
[353954727,1740165100965,-1161.49,0.00011698,2]
[353954728,1740165100974,-996.96,0.00011698,2]
[353954729,1740165100984,-726.25,0.00011698,2]
[353954730,1740165100993,-741.19,0.00011698,2]
[353954731,1740165101004,-1065.12,0.00011698,2]
[353954732,1740165101013,-3844.61,0.00011698,2]
[353954733,1740165101025,-399.59,0.00011698,2]
[353954734,1740165101034,-1447.68,0.00011698,2]
[353954735,1740165101044,-500.0,0.00011698,2]
[353954736,1740165101054,-1663.66,0.00011698,2]
[353954737,1740165101064,-2061.17,0.00011698,2]
[353954738,1740165101073,-898.1,0.00011698,2]
[353954739,1740165101082,-1470.97,0.00011698,2]
[353954740,1740165101091,-500.0,0.00011698,2]
[353954741,1740165101101,-1165.22,0.00011698,2]
[353954742,1740165101110,-3837.3,0.00011698,2]
[353954743,1740165101119,-787.61,0.00011698,2]
[353954744,1740165101128,-1035.45,0.00011698,2]
[353954745,1740165101139,-5838.06973,0.00011698,2]
[353954746,1740165101149,-2088.16,0.00011698,2]
[353954747,1740165101159,-995.71,0.00011698,2]
[353954748,1740165101168,-1813.73,0.00011698,2]
[353954749,1740165101178,-5277.6,0.00011698,2]
[353954750,1740165101188,-3353.09,0.00011698,2]
[353954751,1740165101197,-2359.06,0.00011698,2]
[353954752,1740165101207,-1820.83,0.00011698,2]
[353954753,1740165101217,-163.665974,0.00011698,2]
[353954754,1740165101227,-1070.09,0.00011698,2]
[353954755,1740165101236,-500.0,0.00011698,2]
[353954756,1740165101245,-3197.57,0.00011698,2]
[353954757,1740165101255,-1508.14,0.00011698,2]
[353954758,1740165101264,-2115.76,0.00011698,2]
[353954759,1740165101273,-4937.96,0.00011698,2]
[353954760,1740165101282,-423.24314296,0.00011698,2]
[353954761,1740165101293,-820.83,0.00011698,2]
[353954762,1740165101303,-1969.18,0.00011698,2]
[353954763,1740165101313,-500.0,0.00011698,2]
[353954764,1740165101322,-1293.41,0.00011698,2]
[353954765,1740165101330,-4269.75,0.00011698,2]
[353954766,1740165101340,-1200.1,0.00011698,2]
[353954767,1740165101349,-816.69,0.00011698,2]
[353954768,1740165101359,-2982.14,0.00011698,2]
[353954769,1740165101369,-500.0,0.00011698,2]
[353954770,1740165101380,-3642.37,0.00011698,2]
[353954771,1740165101392,-358.20702221,0.00011761,2]
[353954772,1740165101402,-500.0,0.00011779,2]
[353954773,1740165101412,-530.78,0.00011779,2]
[353954774,1740165101421,-957.52,0.00011779,2]
[353954775,1740165101431,-1681.69,0.00011779,2]
[353954776,1740165101440,-738.16247671,0.00011779,2]
[353954777,1740165101899,-500.0,0.00011616,2]
[353954778,1740165101909,-632.14752329,0.00011779,2]
[353954779,1740165101919,-196.50584743,0.00011779,2]
[353954780,1740165101954,-448.12608553,0.00011779,2]
[353954781,1740165101991,-1947.49424382,0.00011039,3]
[353954782,1740165102294,-411.545,0.00010958,2]
[353954783,1740165102374,-88.455,0.00010958,2]
[353954784,1740165102384,-500.0,0.00010958,2]
[353954785,1740165102396,-1150.795,0.00010958,2]
[353954786,1740165102429,-66.265,0.00010958,2]
[353954787,1740165102439,-500.0,0.00010958,2]
[353954788,1740165102448,-9118.235,0.00011039,3]
[353954789,1740165102459,-1283.00000035,0.00011039,3]
[353954790,1740165103118,-316.93712561,0.00010858,2]
[353954791,1740165103127,-500.0,0.00010958,2]
[353954792,1740165103136,-500.0,0.00010958,2]
[353954793,1740165103148,-500.0,0.00010958,2]
[353954794,1740165103157,-500.0,0.00010958,2]
[353954795,1740165103167,-500.0,0.00010958,2]
[353954796,1740165103176,-10556.86703974,0.00011039,3]
[353954797,1740165103195,-341.95908273,0.00011039,3]
[353954798,1740165103281,-32186.68493095,0.00011039,3]
[353954799,1740165103292,-4706.11589993,0.00011039,3]
[353954800,1740165103311,-714.00520817,0.00011039,3]
[353954801,1740165103322,-317.83985984,0.00011039,3]
[353954802,1740165103341,-9663.39455999,0.00011039,3]
[353954803,1740165103352,-1081.60219012,0.00011039,3]
[353954804,1740165103368,-291.72207878,0.00011039,3]
[353954805,1740165103381,-890.63976209,0.00011039,3]
[353954806,1740165103467,-5294.57902796,0.00011039,3]
[353954807,1740165103478,-1240.7222775,0.00011039,3]
[353954813,1740165857270,-550.0,0.0001,2]
[353954814,1740165857299,-191.19,0.00010277,2]
[353954815,1740165857324,-848.81,0.00010338,2]
[353954816,1740165961207,300.0,9.999e-05,2]
[353954819,1740166004780,612.35,8.219e-05,2]
[353954821,1740166081469,313.64,8.767e-05,2]
[353954823,1740166141252,300.0,9.999e-05,2]
[353954824,1740166198301,-80077.99,0.0001,2]
[353954837,1740166232122,-258.84791069,0.0001,2]
[353954838,1740166232226,-868.4676,0.0001,2]
[353954839,1740166232237,-502.20497375,0.0001,2]
[353954840,1740166232465,-11505.42009391,0.0001,2]
[353954841,1740166232475,-248.48174747,0.00010034,2]
[353954842,1740166232484,-150.0,0.00010134,2]
[353954843,1740166232494,-265.87195017,0.00010134,2]
[353954844,1740166232503,-272.83,0.00010192,2]
[353954845,1740166232513,-151.19,0.00010338,2]
[353954846,1740166232523,-612.35,0.00010483,2]
[353954847,1740166232532,-5150.4662,0.00010758,2]
[353954848,1740166232541,-214.98818245,0.000108,2]
[353954849,1740166232550,-217.44,0.000108,2]
[353954851,1740166232560,-440.33,0.00010822,2]
[353954853,1740166232569,-1000.0,0.00010957,2]
[353954855,1740166232579,-1000.0,0.00010957,2]
[353954856,1740166232588,-1000.0,0.00010957,2]
[353954857,1740166232597,-355.8798207,0.00010957,2]
[353954858,1740166232606,-500.0,0.00010958,2]
[353954859,1740166232614,-500.0,0.00010958,2]
[353954860,1740166232623,-455.1174836,0.00010958,2]
[353954861,1740166232632,-500.72537632,0.00010958,2]
[353954862,1740166232641,-500.0,0.00010958,2]
[353954863,1740166232650,-502.97306693,0.00010958,2]
[353954864,1740166232663,-500.0,0.00010958,2]
[353954866,1740166232672,-500.0,0.00010958,2]
[353954867,1740166232681,-509.52390184,0.00010958,2]
[353954868,1740166232690,-500.0,0.00010958,2]
[353954869,1740166232699,-500.0,0.00010958,2]
[353954870,1740166232708,-500.0,0.00010958,2]
[353954871,1740166232718,-500.0,0.00010958,2]
[353954872,1740166232728,-643.11,0.00010958,2]
[353954873,1740166232737,-500.0,0.00010958,2]
[353954874,1740166232746,-500.0,0.00010958,2]
[353954875,1740166232755,-500.0,0.00010958,2]
[353954876,1740166232765,-645.38,0.00010958,2]
[353954877,1740166232775,-500.0,0.00010958,2]
[353954878,1740166232784,-500.0,0.00010958,2]
[353954879,1740166232793,-500.0,0.00010958,2]
[353954880,1740166232803,-500.0,0.00010958,2]
[353954881,1740166232812,-500.0,0.00010958,2]
[353954882,1740166232822,-500.0,0.00010958,2]
[353954883,1740166232831,-500.0,0.00010958,2]
[353954884,1740166232841,-500.0,0.00010958,2]
[353954885,1740166232851,-263.17932179,0.00010958,2]
[353954886,1740166232861,-553.19,0.00010958,2]
[353954887,1740166232870,-500.0,0.00010958,2]
[353954888,1740166232880,-500.0,0.00010958,2]
[353954889,1740166232889,-521.16749103,0.00010958,2]
[353954890,1740166232899,-500.0,0.00010958,2]
[353954891,1740166232912,-176.06045969,0.00010958,2]
[353954892,1740166232921,-500.0,0.00010958,2]
[353954893,1740166232930,-500.0,0.00010958,2]
[353954894,1740166232939,-500.0,0.00010958,2]
[353954895,1740166232948,-500.0,0.00010958,2]
[353954896,1740166232957,-744.37,0.00010958,2]
[353954897,1740166232966,-500.0,0.00010958,2]
[353954898,1740166232975,-500.0,0.00010958,2]
[353954899,1740166232984,-500.0,0.00010958,2]
[353954900,1740166232993,-648.96,0.00010958,2]
[353954901,1740166233003,-500.0,0.00010958,2]
[353954902,1740166233012,-500.0,0.00010958,2]
[353954903,1740166233021,-633.22,0.00010958,2]
[353954904,1740166233031,-997.07,0.00010958,2]
[353954905,1740166233041,-500.0,0.00010958,2]
[353954906,1740166233050,-563.63,0.00010958,2]
[353954907,1740166233060,-484.49123618,0.00010958,2]
[353954908,1740166233069,-102.58366792,0.00010958,2]
[353954909,1740166233084,-397.41633208,0.00010958,2]
[353954910,1740166233094,-500.0,0.00010958,2]
[353954911,1740166233104,-648.0,0.00010958,2]
[353954912,1740166233113,-821.86,0.00010958,2]
[353954913,1740166233122,-500.0,0.00010958,2]
[353954914,1740166233132,-500.0,0.00010958,2]
[353954915,1740166233141,-500.0,0.00010958,2]
[353954916,1740166233151,-827.92,0.00010958,2]
[353954917,1740166233165,-500.0,0.00010958,2]
[353954918,1740166233175,-500.0,0.00010958,2]
[353954919,1740166233186,-500.0,0.00010958,2]
[353954920,1740166233196,-500.0,0.00010958,2]
[353954921,1740166233206,-500.0,0.00010958,2]
[353954922,1740166233216,-500.0,0.00010958,2]
[353954923,1740166233226,-907.21,0.00010958,2]
[353954924,1740166233236,-691.95,0.00010958,2]
[353954925,1740166233245,-640.36,0.00010958,2]
[353954926,1740166233255,-716.4705072,0.00010958,2]
[353954927,1740166233316,-1390.6694928,0.00010958,2]
[353954928,1740166233325,-500.0,0.00010958,2]
[353954929,1740166233336,-500.0,0.00010958,2]
[353954930,1740166233345,-500.0,0.00010958,2]
[353954931,1740166233355,-500.0,0.00010958,2]
[353954932,1740166233366,-500.0,0.00010958,2]
[353954933,1740166233375,-500.0,0.00010958,2]
[353954934,1740166233385,-500.0,0.00010958,2]
[353954935,1740166233394,-500.0,0.00010958,2]